[Event "Klatovy Open-B 2024"]
[Site "Klatovy"]
[Date "2024.07.05"]
[Round "7.12"]
[White "Koupil, Stepan"]
[Black "Velkoborsky, Tadeas"]
[Result "1/2-1/2"]
[ECO "C45"]
[WhiteElo "1685"]
[BlackElo "1578"]
[Annotator "NA RC"]
[PlyCount "104"]
[EventDate "2024.06.21"]
[EventType "swiss"]
[EventCountry "CZE"]
[SourceTitle "playchess.com"]
[Source "ChessBase"]
[SourceQuality "1"]
[TimeControl "40/7200:0"]

1. e4 {[%emt 0:00:00]} e5 {[%emt 0:00:00]} 2. Nf3 {[%emt 0:00:00]} Nc6 {[%emt 0:00:00]} 3. d4 {[%emt 0:00:00]} exd4 {[%emt 0:00:00]} 4. Nxd4 {[%emt 0:00:00]} Bc5 {[%emt 0:00:00]} 5. Be3 {[%emt 0:00:00]} Qf6 {[%emt 0:00:00]} 6. c3 {[%emt 0:00:00]} Nge7 {[%emt 0:02:54]} 7. Qf3 {[%emt 0:00:00]} Qxf3 {[%emt 0:02:49]} 8. gxf3 {[%emt 0:00:00]} Nxd4 {[%emt 0:00:49]} 9. cxd4 {[%emt 0:00:00]} Bb4+ {[%emt 0:00:05]} 10. Nc3 {[%emt 0:00:00]} d5 {[%emt 0:02:57]} 11. O-O-O {[%emt 0:00:00]} dxe4 {[%emt 0:14:42]} 12. fxe4 {[%emt 0:00:00]} Bxc3 {[%emt 0:05:55]} 13. bxc3 {[%emt 0:00:00]} Bg4 {[%emt 0:00:35]} 14. Rd2 {[%emt 0:00:00]} Bf3 {[%emt 0:00:29]} 15. Rg1 {[%emt 0:00:00]} Bxe4 {[%emt 0:00:00]} 16. Rxg7 {[%emt 0:00:00]} Bg6 {[%emt 0:01:31]} 17. Bd3 {[%emt 0:00:00]} h6 {[%emt 0:00:51]} 18. Bxg6 {[%emt 0:01:20]} Nxg6 {[%emt 0:04:52]} 19. d5 {[%emt 0:00:00]} Rd8 {[%emt 0:05:21]} 20. Bd4 {[%emt 0:03:05]} Rxd5 {[%emt 0:02:29]} 21. Re2+ {[%emt 0:05:49]} Kf8 {[%emt 0:04:40]} 22. Bf6 {[%emt 0:00:14]} Rg8 {[%emt 0:05:01]} 23. Rxg8+ {[%emt 0:05:17]} Kxg8 {[%emt 0:00:00]} 24. Re8+ {[%emt 0:00:00]} Kh7 {[%emt 0:00:00]} 25. Rc8 {[%emt 0:00:00]} Rd7 {[%emt 0:07:05]} 26. h4 {[%emt 0:02:24]} Ne7 {[%emt 0:00:40]} 27. Ra8 {[%emt 0:01:07]} Kg6 {[%emt 0:01:09]} 28. Bxe7 {[%emt 0:00:49]} Rxe7 {[%emt 0:00:00]} 29. Rxa7 {[%emt 0:00:00]} b6 {[%emt 0:01:32]} 30. Kd2 {[%emt 0:00:08]} Kh5 {[%emt 0:01:52]} 31. Ra4 {[%emt 0:00:00]} f5 {[%emt 0:01:18]} 32. Kd3 {[%emt 0:01:04]} Rg7 {[%emt 0:04:17]} 33. f3 {[%emt 0:01:24]} Rg2 {[%emt 0:04:04]} 34. a3 {[%emt 0:02:51]} Rh2 {[%emt 0:02:09]} 35. Rf4 {[%emt 0:00:00]} Rxh4 {[%emt 0:05:02]} 36. Rxf5+ {[%emt 0:00:00]} Kg6 {[%emt 0:00:00]} 37. Rd5 {[%emt 0:00:00]} h5 {[%emt 0:05:43]} 38. Rd7 {[%emt 0:00:00]} Rf4 {[%emt 0:00:00]} 39. Ke3 {[%emt 0:05:44]} Rf7 {[%emt 0:00:00]} 40. Rd4 {[%emt 0:00:00]} Rh7 {[%emt 0:00:00]} 41. Kf2 {[%emt 1:59:51]} h4 {[%emt 2:01:49]} 42. Kg2 {[%emt 0:00:00]} h3+ {[%emt 0:01:57]} 43. Kh2 {[%emt 0:00:00]} Kf5 {[%emt 0:02:34]} 44. a4 {[%emt 0:00:00]} c5 {[%emt 0:05:35]} 45. Rd6 {[%emt 0:02:10]} Kf4 {[%emt 0:01:52]} 46. Rxb6 {[%emt 0:01:46]} Kxf3 {[%emt 0:00:00]} 47. Rb3 {[%emt 0:01:02]} c4 {[%emt 0:01:14]} 48. Rb4 {[%emt 0:02:11]} Rc7 {[%emt 0:00:54]} 49. Rb5 {[%emt 0:05:36]} Ke3 {[%emt 0:00:35]} 50. Rd5 {[%emt 0:00:12]} Ra7 {[%emt 0:01:56]} 51. a5 {[%emt 0:00:25]} Ke4 {[%emt 0:00:00]} 52. Rd4+ {[%emt 0:00:00]} Ke5 {[%emt 0:00:00]} 1/2-1/2

[Event "Klatovy Open-B 2024"]
[Site "Klatovy"]
[Date "2024.07.05"]
[Round "7.13"]
[White "Stanke, Petr"]
[Black "Mojzisova, Barbora"]
[Result "0-1"]
[ECO "D37"]
[WhiteElo "1683"]
[BlackElo "1535"]
[Annotator "NA RC"]
[PlyCount "102"]
[EventDate "2024.06.21"]
[EventType "swiss"]
[EventCountry "CZE"]
[SourceTitle "playchess.com"]
[Source "ChessBase"]
[SourceQuality "1"]
[TimeControl "40/7200:0"]

1. d4 {[%emt 0:00:00]} d5 {[%emt 0:00:00]} 2. c4 {[%emt 0:00:00]} e6 {[%emt 0:00:00]} 3. Nf3 {[%emt 0:00:00]} Nf6 {[%emt 0:00:00]} 4. Nc3 {[%emt 0:00:00]} Be7 {[%emt 0:00:00]} 5. e3 {[%emt 0:00:00]} b6 {[%emt 0:00:00]} 6. cxd5 {[%emt 0:00:00]} Nxd5 {[%emt 0:02:18]} 7. Nxd5 {[%emt 0:02:14]} Qxd5 {[%emt 0:04:41]} 8. Qc2 {[%emt 0:05:51]} Bb4+ {[%emt 0:04:30]} 9. Bd2 {[%emt 0:00:26]} Bxd2+ {[%emt 0:00:00]} 10. Qxd2 {[%emt 0:01:27]} O-O {[%emt 0:02:35]} 11. Be2 {[%emt 0:04:12]} Bb7 {[%emt 0:03:51]} 12. O-O {[%emt 0:04:24]} Nd7 {[%emt 0:02:41]} 13. b4 {[%emt 0:17:11]} Nf6 {[%emt 0:01:11]} 14. Rac1 {[%emt 0:03:20]} Rac8 {[%emt 0:02:12]} 15. a4 {[%emt 0:07:31]} Ne4 {[%emt 0:01:38]} 16. Qb2 {[%emt 0:01:54]} Nd6 {[%emt 0:07:31]} 17. Rfd1 {[%emt 0:06:43]} Qe4 {[%emt 0:05:21]} 18. Rc2 {[%emt 0:06:41]} Rfd8 {[%emt 0:03:30]} 19. Bd3 {[%emt 0:04:02]} Qg4 {[%emt 0:00:37]} 20. Be2 {[%emt 0:00:57]} Qg6 {[%emt 0:01:50]} 21. Rdc1 {[%emt 0:02:48]} Rd7 {[%emt 0:01:30]} 22. b5 {[%emt 0:03:35]} h6 {[%emt 0:06:24]} 23. Qb4 {[%emt 0:00:19]} Be4 {[%emt 0:06:04]} 24. Rc3 {[%emt 0:01:36]} Nf5 {[%emt 0:03:32]} 25. Ne1 {[%emt 0:05:09]} Ne7 {[%emt 0:01:45]} 26. Qa3 {[%emt 0:02:59]} Nd5 {[%emt 0:01:33]} 27. Rc4 {[%emt 0:02:42]} Nf6 {[%emt 0:02:25]} 28. Bd3 {[%emt 0:00:40]} Ng4 {[%emt 0:03:03]} 29. Bxe4 {[%emt 0:00:25]} Qxe4 {[%emt 0:00:00]} 30. Qd3 {[%emt 0:04:33]} Qxd3 {[%emt 0:00:48]} 31. Nxd3 {[%emt 0:00:00]} Re7 {[%emt 0:04:14]} 32. h3 {[%emt 0:00:00]} Nf6 {[%emt 0:00:00]} 33. Ne5 {[%emt 0:00:00]} Ne8 {[%emt 0:00:23]} 34. Nc6 {[%emt 0:00:00]} Rd7 {[%emt 0:00:00]} 35. Nxa7 {[%emt 0:00:00]} Ra8 {[%emt 0:00:00]} 36. Nc6 {[%emt 0:00:00]} Nd6 {[%emt 0:00:00]} 37. Rb4 {[%emt 0:00:00]} f6 {[%emt 0:00:00]} 38. Ra1 {[%emt 0:00:43]} Ne4 {[%emt 0:00:41]} 39. f3 {[%emt 0:03:08]} Nc3 {[%emt 0:01:07]} 40. a5 {[%emt 0:02:09]} bxa5 {[%emt 0:00:23]} 41. Rxa5 {[%emt 2:00:03]} Rxa5 {[%emt 2:00:04]} 42. Nxa5 {[%emt 0:00:00]} Rd5 {[%emt 0:00:00]} 43. Nb3 {[%emt 0:02:22]} Rxb5 {[%emt 0:01:11]} 44. Rxb5 {[%emt 0:00:00]} Nxb5 {[%emt 0:00:00]} 45. Kf2 {[%emt 0:00:49]} Kf7 {[%emt 0:00:05]} 46. e4 {[%emt 0:00:58]} c6 {[%emt 0:01:32]} 47. Ke3 {[%emt 0:00:00]} e5 {[%emt 0:01:30]} 48. d5 {[%emt 0:00:56]} cxd5 {[%emt 0:00:00]} 49. exd5 {[%emt 0:00:00]} Nc3 {[%emt 0:00:00]} 50. Nc5 {[%emt 0:01:00]} Nxd5+ {[%emt 0:00:00]} 51. Ke4 {[%emt 0:00:00]} Nf4 {[%emt 0:37:20]} 0-1

[Event "Klatovy Open-B 2024"]
[Site "Klatovy"]
[Date "2024.07.05"]
[Round "7.14"]
[White "Kolman, Pavel Petr"]
[Black "Spackova, Martina"]
[Result "1-0"]
[ECO "C56"]
[WhiteElo "1582"]
[BlackElo "1777"]
[Annotator "NA RC"]
[PlyCount "113"]
[EventDate "2024.06.21"]
[EventType "swiss"]
[EventCountry "CZE"]
[SourceTitle "playchess.com"]
[Source "ChessBase"]
[SourceQuality "1"]
[TimeControl "40/7200:0"]

1. e4 {[%emt 0:00:00]} e5 {[%emt 2:00:00]} 2. Nf3 {[%emt 0:00:00]} Nc6 {[%emt 0:00:00]} 3. d4 {[%emt 0:00:00]} exd4 {[%emt 0:00:00]} 4. Bc4 {[%emt 0:00:00]} Nf6 {[%emt 0:00:00]} 5. e5 {[%emt 0:00:00]} d5 {[%emt 0:00:00]} 6. Bb5 {[%emt 0:00:00]} Ne4 {[%emt 0:00:00]} 7. Nxd4 {[%emt 0:00:00]} Bd7 {[%emt 0:00:00]} 8. Bxc6 {[%emt 0:00:00]} bxc6 {[%emt 0:00:00]} 9. O-O {[%emt 0:00:00]} c5 {[%emt 0:00:00]} 10. Ne2 {[%emt 0:02:48]} Bb5 {[%emt 0:00:00]} 11. f3 {[%emt 0:01:52]} Ng5 {[%emt 0:00:00]} 12. Nbc3 {[%emt 0:04:17]} Bc4 {[%emt 0:00:00]} 13. Nxd5 {[%emt 0:02:24]} Nxf3+ {[%emt 0:00:00]} 14. Rxf3 {[%emt 0:00:19]} Qxd5 {[%emt 0:00:00]} 15. Qxd5 {[%emt 0:00:51]} Bxd5 {[%emt 0:00:00]} 16. Rf1 {[%emt 0:01:09]} c4 {[%emt 0:00:00]} 17. Nc3 {[%emt 0:08:29]} Bc5+ {[%emt 0:00:00]} 18. Kh1 {[%emt 0:00:00]} c6 {[%emt 0:00:00]} 19. Bf4 {[%emt 0:03:09]} O-O {[%emt 0:00:00]} 20. b3 {[%emt 0:01:05]} Rfe8 {[%emt 0:00:00]} 21. Rad1 {[%emt 0:01:37]} Rad8 {[%emt 0:00:00]} 22. Nxd5 {[%emt 0:01:00]} cxd5 {[%emt 0:00:00]} 23. c3 {[%emt 0:04:23]} h6 {[%emt 0:00:00]} 24. b4 {[%emt 0:03:41]} Bb6 {[%emt 0:00:00]} 25. a4 {[%emt 0:02:41]} Re6 {[%emt 0:00:00]} 26. g3 {[%emt 0:01:58]} Bc7 {[%emt 0:00:00]} 27. Rfe1 {[%emt 0:04:34]} g5 {[%emt 0:00:00]} 28. Be3 {[%emt 0:02:46]} Bxe5 {[%emt 0:00:00]} 29. Rc1 {[%emt 0:01:51]} a6 {[%emt 0:00:00]} 30. b5 {[%emt 0:00:49]} axb5 {[%emt 0:00:00]} 31. axb5 {[%emt 0:00:00]} Bc7 {[%emt 0:00:00]} 32. Bd4 {[%emt 0:00:24]} Rb8 {[%emt 0:00:00]} 33. Rxe6 {[%emt 0:04:17]} fxe6 {[%emt 0:00:00]} 34. Rb1 {[%emt 0:00:13]} e5 {[%emt 0:00:00]} 35. b6 {[%emt 0:00:00]} Bd6 {[%emt 0:00:00]} 36. Bf2 {[%emt 0:00:18]} Kf7 {[%emt 0:00:00]} 37. b7 {[%emt 0:00:00]} Ke6 {[%emt 0:00:00]} 38. Ba7 {[%emt 0:00:00]} Kf5 {[%emt 0:00:00]} 39. Bxb8 {[%emt 0:01:49]} Bxb8 {[%emt 0:00:00]} 40. Kg2 {[%emt 0:00:32]} Ke4 {[%emt 0:00:00]} 41. Kf2 {[%emt 2:01:52]} d4 {[%emt 1:57:19]} 42. cxd4 {[%emt 0:00:26]} exd4 {[%emt 0:00:00]} 43. Ke2 {[%emt 0:00:00]} d3+ {[%emt 0:01:01]} 44. Kd2 {[%emt 0:00:00]} Kd4 {[%emt 0:00:00]} 45. Ra1 {[%emt 0:00:00]} c3+ {[%emt 0:00:00]} 46. Kd1 {[%emt 0:00:00]} Ke3 {[%emt 0:00:28]} 47. Ra6 {[%emt 0:00:00]} c2+ {[%emt 0:00:28]} 48. Kc1 {[%emt 0:00:00]} Kd4 {[%emt 0:00:01]} 49. Kd2 {[%emt 0:00:02]} h5 {[%emt 0:00:00]} 50. Ra8 {[%emt 0:00:00]} Bc7 {[%emt 0:00:01]} 51. b8=Q {[%emt 0:00:00]} Bxb8 {[%emt 0:00:02]} 52. Rxb8 {[%emt 0:00:00]} Ke4 {[%emt 0:00:04]} 53. Rh8 {[%emt 0:00:00]} h4 {[%emt 0:00:00]} 54. gxh4 {[%emt 0:00:00]} gxh4 {[%emt 0:00:00]} 55. Rxh4+ {[%emt 0:00:00]} Kf3 {[%emt 0:00:00]} 56. Rh3+ {[%emt 0:00:00]} Ke4 {[%emt 0:00:00]} 57. Rg3 {[%emt 0:00:00]} 1-0